Cogmind - Beta 13 @@@ ROGUE MODE // 2024.05.12 @ 09:15:06 Player: N00Bk1llr Result: Destroyed by Y-54 Guardian with Flak Gun Performance ------------- Evolutions (4) 2000 Regions Visited (4) 800 Robots Destroyed (57) 285 Value Destroyed (1848) 1848 Prototype IDs (17) 340 Alien Tech Used (0) 0 Bonus (15) 15 TOTAL SCORE: 5288 Bonus ------- High Alert Combat Kills 16 Friendly Fire -1 Cogmind --------- Core Integrity 0/850 Matter 48/300 Energy 100/100 System Corruption 1% Temperature Cool (0) Movement Core (450) Ox8 Location -6/Factory Parts ------- > --- POWER (1) -------- (None) > --- PROPULSION (6) --- (None) > --- UTILITY (6) ------ Large Storage Unit Hacking Suite Power Bank > --- WEAPON (2) ------- Makeshift Sword > --- INVENTORY (15) --- Backup Power I Improved Cooling System Improved Signal Interpreter Cloaking Device Cloaking Device System Restoration Module Recalibrator Heavy Plasma Cannon Heavy Plasma Cannon Barrage Gun Heavy Machine Gun Magnetic Acceleration Cannon Subdweller Shrapnel Launcher Multitool Peak State ------------ > --- POWER ------------ Light Nuclear Core Light Fission Core > --- PROPULSION ------- Improved Medium Treads Airjet > --- UTILITY ---------- Large Storage Unit Improved Medium Armor Plating Hacking Suite Makeshift Hacking Suite Power Bank > --- WEAPON ----------- Dirty Datajack Makeshift Sword > --- INVENTORY -------- Backup Power I Improved Cooling System Improved Signal Interpreter Cloaking Device Cloaking Device System Restoration Module Recalibrator Heavy Plasma Cannon Heavy Plasma Cannon Barrage Gun Heavy Machine Gun Magnetic Acceleration Cannon Subdweller Shrapnel Launcher Multitool [Rating: 52] Favorites ----------- Power Ion Engine Engine Ion Engine Power Core Light Fission Core Propulsion Spiked Treads Treads Spiked Treads Leg Flexi-carbon Leg Hover Unit Airjet Utility Large Storage Unit Device Shield Generator Storage Large Storage Unit Hackware Makeshift Hacking Suite Protection Scrap Shield Weapon Battle Cannon Ballistic Gun Light Assault Rifle Ballistic Cannon Battle Cannon Launcher Grenade Launcher Special Weapon Flamer Slashing Weapon Makeshift Sword Special Melee Weapon Dirty Datajack Build | -11 -10 -10 -8 -6 ------- Run | Yrd Mat Sub Rec Fac Slots Evolved 8 | . . . . 8 Power . | . . . . . Propulsion 4 | . . . . 4 Utility 4 | . . . . 4 Weapon . | . . . . . Parts Attached 71 | 6 11 24 1 29 Power 13 | 1 2 5 . 5 Engine 10 | 1 2 5 . 2 Core 3 | . . . . 3 Reactor . | . . . . . Propulsion 11 | 2 2 3 . 4 Treads 8 | 2 2 3 . 1 Leg 2 | . . . . 2 Wheel . | . . . . . Hover 1 | . . . . 1 Flight . | . . . . . Utility 21 | 1 5 7 . 8 Device 4 | . 1 . . 3 Storage 4 | 1 1 2 . . Processor . | . . . . . Hackware 2 | . . . . 2 Protection 11 | . 3 5 . 3 Artifact . | . . . . . Weapon 26 | 2 2 9 1 12 Energy Gun . | . . . . . Energy Cannon . | . . . . . Ballistic Gun 4 | 2 . . . 2 Ballistic Cannon 10 | . 2 7 . 1 Launcher 4 | . . 1 . 3 Special Weapon 1 | . . . . 1 Impact Weapon . | . . . . . Slashing Weapon 3 | . . 1 1 1 Piercing Weapon . | . . . . . Special Melee Weapon 4 | . . . . 4 Unidentified Prototypes . | . . . . . Parts Lost 29 | . . 6 1 22 Power 7 | . . 1 . 6 Propulsion 7 | . . 1 . 6 Utility 7 | . . 2 . 5 Weapon 8 | . . 2 1 5 Highest Loss Streak 6 | . . 6 1 6 To Critical Strikes . | . . . . . Average Slot Usage (%) 82 | . 98 85 99 49 Engine 11 | . 14 12 14 1 Treads 23 | . 28 27 28 3 Leg 1 | . . . . 6 Device 2 | . 8 . . 5 Storage 5 | . 14 1 14 5 Hackware 1 | . . . . 8 Protection 9 | . 4 13 14 2 Ballistic Cannon 18 | . 24 20 25 1 Slashing Weapon 3 | . . 6 2 1 Naked Turns . | . . . . . Heaviest Build 61 | 12 36 36 32 61 Greatest Support 40 | 40 40 40 40 40 Greatest Overweight (x) 14 | . . . . 14 Average Overweight (x) . | . . . . . Largest Inventory Capacity 15 | 8 15 15 15 15 Average Capacity 10 | 7 14 6 15 15 Most Carried 15 | 2 15 15 15 14 Average Carried 8 | . 11 5 14 11 Final Capacity 15 | 8 15 15 15 15 Final Carried 15 | 2 15 15 14 14 Class Distribution -------------------- 59% | Derelict-Mutant 32% | Mutant 7% | Hacker-Mutant Dominant Class ---------------- Mutant | -10/Materials Derelict-Mutant | -10/Subcaves Derelict-Mutant | -8/Recycling Hacker-Mutant | -6/Factory Resources | -11 -10 -10 -8 -6 ----------- Run | Yrd Mat Sub Rec Fac Matter Collected 2178 | 220 616 845 264 233 Remotely . | . . . . . Salvage Created 1575 | . 454 776 110 235 Parts 118 | . 43 59 4 12 Haulers Intercepted . | . . . . . Recyclers Shooed . | . . . . . Parts Field Recycled . | . . . . . Retrieved Matter . | . . . . . Parts Self-Destructed 17 | . . 17 . . Prevented . | . . . . . Kills | -11 -10 -10 -8 -6 ------- Run | Yrd Mat Sub Rec Fac Combat Hostiles Destroyed 46 | . 14 24 2 6 Melee 11 | . . 8 1 2 Guns 4 | . 3 . . 1 Cannons 29 | . 11 16 1 1 AOE 1 | . . . . 1 Classes Destroyed 15 | . 7 4 2 2 Worker 2 | . 2 . . . Builder 1 | . 1 . . . Tunneler 3 | . 2 . . 1 Recycler 1 | . . . 1 . Operator 1 | . 1 . . . Turret 2 | . . 2 . . Watcher 1 | . 1 . . . Swarmer 9 | . 3 6 . . Grunt 12 | . 11 1 . . Sentry 2 | . . . 2 . Hunter 3 | . . . . 3 Programmer 3 | . . . . 3 Artisan 1 | . . 1 . . Cobbler 1 | . . 1 . . Subdweller 17 | . . 17 . . Best Kill Streak 5 | . 4 5 2 1 Combat Bots Only 5 | . 3 5 1 1 Max Kills in Single Turn 2 | . 2 1 1 1 Gunslinging . | . . . . . Exploded 1 | . . . . 1 Melee 1 | . . 1 1 1 Uniques/NPCs Destroyed . | . . . . . Combat | -11 -10 -10 -8 -6 -------- Run | Yrd Mat Sub Rec Fac Hostile Shots Fired 708 | . 45 148 22 493 Missed 279 | . 13 55 7 204 Damage Taken 5875 | . 281 1924 222 3448 Core 1057 | . 33 135 39 850 Absorbed by Shields 110 | . 42 68 . . Redirected to Shielding 9 | . 2 . 7 . Core Remaining (%) 58 | 100 . . 17 . Volleys Fired 192 | . 63 90 12 27 Largest 2 | . 2 2 2 2 Hottest 100 | . 78 78 78 100 Shots Fired 331 | . 126 143 22 40 Gun 35 | . 16 . . 19 Cannon 276 | . 110 132 22 12 Launcher 13 | . . 11 . 2 Special 7 | . . . . 7 Kinetic 312 | . 126 132 22 32 Thermal 7 | . . . . 7 Explosive 12 | . . 11 . 1 Electromagnetic . | . . . . . Robot Hit Streak 14 | . 6 14 4 11 Robot Miss Streak 6 | . 6 3 5 3 Penetration Max . | . . . . . Secondary Targets . | . . . . . Shots Hit Robots 218 | . 55 98 13 52 Core Hits 102 | . 23 46 3 30 Critical Kills . | . . . . . Critical Parts Destroyed . | . . . . . Critical Strikes 7 | . 1 4 . 2 Burn 1 | . . . . 1 Blast 6 | . 1 4 . 1 Melee Attacks 82 | . . 45 1 36 Impact . | . . . . . Slashing 62 | . . 45 1 16 Piercing 20 | . . . . 20 Sneak Attacks 3 | . . 1 . 2 Combat Hostiles 2 | . . . . 2 Follow-up Attacks . | . . . . . Damage Inflicted 4990 | . 1055 2719 294 922 Guns 204 | . 57 . . 147 Cannons 2734 | . 998 1386 261 89 Explosions 302 | . . 124 . 178 Melee 1640 | . . 1209 33 398 Ramming 24 | . . . . 24 Kinetic 3038 | . 1055 1386 261 336 Thermal 86 | . . . . 86 Explosive 202 | . . 124 . 78 Electromagnetic . | . . . . . Impact . | . . . . . Slashing 1598 | . . 1209 33 356 Piercing 42 | . . . . 42 Highest Corruption 1 | . 1 1 1 1 Average Corruption 1 | . 1 1 1 1 Corruption Purged . | . . . . . Corruption Blocked . | . . . . . Effects 49 | . 7 33 4 5 Message Errors 17 | . 3 12 1 1 Matter Fused 11 | . 1 5 3 2 Heat Flow Errors 3 | . . 3 . . Energy Discharges 7 | . 1 5 . 1 Parts Fused 1 | . . 1 . . Data Loss (minor) 6 | . . 6 . . Data Loss (major) 3 | . 2 . . 1 Misfires 1 | . . 1 . . Overload Shots . | . . . . . Overflow Damage 60 | . 37 22 . 1 Projectiles 37 | . 37 . . . Explosions . | . . . . . Melee 23 | . . 22 . 1 Knockbacks 25 | . 11 10 1 3 Impact 1 | . . . . 1 Kinetic 23 | . 10 10 1 2 Secondary 1 | . 1 . . . Self-Inflicted Damage 71 | . . 71 . . Shots 3 | . . 3 . . Rammed 4 | . . . . 4 Targets Rammed 6 | . . . . 6 Kicked 1 | . . . . 1 Crushed 1 | . . . . 1 Highest Temperature 276 | . 159 276 203 31 Average Temperature 56 | . 52 96 95 11 Received Heat Transfer 1601 | . 104 710 99 688 Siege Activations . | . . . . . Robots Corrupted . | . . . . . Combat Hostiles . | . . . . . Parts Fried . | . . . . . Impact Corruptions . | . . . . . Robots Melted 1 | . . . . 1 Combat Hostiles 1 | . . . . 1 Parts Melted 3 | . . 1 . 2 Heat Transferred 720 | . . . . 720 Parts Sabotaged . | . . . . . Parts Stolen . | . . . . . Parts Stripped . | . . . . . Power Chain Reactions . | . . . . . Alert | -11 -10 -10 -8 -6 ------- Run | Yrd Mat Sub Rec Fac Peak Influence 434 | . 327 . 301 434 Initial 350 | . . . 136 350 Average 182 | . 174 . 156 211 Maximum Alert Level 2 | . 1 . 1 2 Low Security (%) 56 | 100 58 . 66 46 Level 1 42 | . 41 . 33 49 Level 2 1 | . . . . 4 Level 3 . | . . . . . Level 4 . | . . . . . Level 5 . | . . . . . High Security . | . . . . . Max Security . | . . . . . Squads Dispatched 10 | . 4 . . 6 Investigation 5 | . 4 . . 1 Extermination 2 | . . . . 2 Reinforcement 2 | . . . . 2 Assault . | . . . . . Garrison 1 | . . . . 1 Intercept . | . . . . . Searches Triggered . | . . . . . Construction Impeded . | . . . . . Haulers Reinforced . | . . . . . Active Scanning Responses . | . . . . . Cargo Convoy Interrupts . | . . . . . Stealth | -11 -10 -10 -8 -6 --------- Run | Yrd Mat Sub Rec Fac Distress Signals 3 | . 1 . . 2 Communications Jammed . | . . . . . Distress Signals . | . . . . . Times Spotted 88 | . 22 34 2 30 Peak Tracking Total 5 | . 4 4 2 5 Tactical Retreats 9 | . 1 4 . 4 Traps | -11 -10 -10 -8 -6 ------- Run | Yrd Mat Sub Rec Fac Traps Triggered 3 | . 1 1 . 1 Indirectly . | . . . . . Trap Hack Attempts . | . . . . . Triggered . | . . . . . Disarmed . | . . . . . Reprogrammed . | . . . . . Reused . | . . . . . Traps Extracted . | . . . . . Installed . | . . . . . Triggered 6 | . . 6 . . Machines | -11 -10 -10 -8 -6 ---------- Run | Yrd Mat Sub Rec Fac Machines Disabled 9 | . 2 4 2 1 Max in Single Turn 2 | . 1 2 1 1 Machines Repaired . | . . . . . Machines Dismantled . | . . . . . Machines Sabotaged . | . . . . . Overloaded Fab Kills . | . . . . . Hacking | -11 -10 -10 -8 -6 --------- Run | Yrd Mat Sub Rec Fac Machines Accessed 33 | . 11 2 12 8 Terminals 18 | . 8 . 6 4 Fabricators . | . . . . . Repair Stations 2 | . 1 . . 1 Recycling Units 9 | . 2 . 6 1 Scanalyzers 2 | . . . . 2 Garrison Access . | . . . . . Total Hacks 75 | . 24 3 25 23 Successful 42 | . 10 3 14 15 Failed 33 | . 14 . 11 8 Catastrophic 7 | . 2 . 3 2 Database Lockouts . | . . . . . Manual 39 | . 8 . 22 9 Terminals 49 | . 18 . 18 13 Fabricators . | . . . . . Repair Stations 6 | . 4 . . 2 Recycling Units 12 | . 2 . 7 3 Scanalyzers 5 | . . . . 5 Garrison Access . | . . . . . Terminal Hacks 21 | . 5 3 6 7 Record 2 | . . 2 . . Part Schematic 1 | . . . . 1 Robot Analysis 1 | . . . . 1 Prototype ID Bank 3 | . 1 . 2 . Terminal Index 1 | . . . . 1 Fabricator Index 1 | . . . . 1 Alert Level 2 | . . . 2 . Unreport Threat 3 | . . . 2 1 Locate Traps 2 | . 2 . . . Hauler Manifests 2 | . 1 . . 1 Registered Prototypes 1 | . 1 . . . Zone Layout 1 | . . . . 1 Derelict Proto ID Bank 1 | . . 1 . . Fabricator Hacks . | . . . . . Repair Station Hacks 5 | . 3 . . 2 Scan Component 1 | . . . . 1 Repair 1 | . . . . 1 Refit 3 | . 3 . . . Recycling Unit Hacks 1 | . . . . 1 Retrieve Matter 1 | . . . . 1 Scanalyzer 4 | . . . . 4 Insert Component 2 | . . . . 2 Analyze 2 | . . . . 2 Garrison Access Hacks . | . . . . . Unauthorized Hacks 11 | . 2 . 8 1 Terminals 3 | . . . 2 1 Botnet 3 | . . . 2 1 Fabricators . | . . . . . Repair Stations . | . . . . . Recycling Units 8 | . 2 . 6 . Tunnel 8 | . 2 . 6 . Scanalyzers . | . . . . . Garrison Access . | . . . . . Data Cores Recovered 1 | . 1 . . . Used . | . . . . . Hacking Detections 21 | . 9 . 6 6 Full Trace Events 4 | . 2 . 1 1 Feedback Events . | . . . . . Feedback Blocked . | . . . . . Robot Schematics Acquired . | . . . . . Robots Built . | . . . . . Authchips . | . . . . . Time . | . . . . . Total Robot Build Rating . | . . . . . Part Schematics Acquired 3 | . . . . 3 Parts Built . | . . . . . Authchips . | . . . . . Time . | . . . . . Total Part Build Rating . | . . . . . Parts Repaired 1 | . . . . 1 Time 61 | . . . . 61 Parts Recycled . | . . . . . Recycled Matter . | . . . . . Retrieved Matter . | . . . . . Retrieved Components . | . . . . . Parts Scanalyzed 2 | . . . . 2 Part Schematics Acquired 2 | . . . . 2 Parts Damaged 1 | . . . . 1 Bothacking | -11 -10 -10 -8 -6 ------------ Run | Yrd Mat Sub Rec Fac Used RIF Installer . | . . . . . Robots Hacked . | . . . . . Non-combat . | . . . . . Combat . | . . . . . Robot Hacks Applied . | . . . . . Relay Couplers Released . | . . . . . Fabnet Peak Effective % . | . . . . . Robots Rewired . | . . . . . Allies Hacked . | . . . . . Hacks Repelled . | . . . . . Allies | -11 -10 -10 -8 -6 -------- Run | Yrd Mat Sub Rec Fac Total Allies 1 | . . . . 1 Largest Group 1 | . . . . 1 Highest-Rated Group 28 | . . . . 28 Highest-Rated Ally 28 | . . . . 28 Total Orders . | . . . . . Ally Attacks . | . . . . . Total Damage . | . . . . . Kills . | . . . . . Allies Corrupted . | . . . . . Allies Melted . | . . . . . Intel | -11 -10 -10 -8 -6 ------- Run | Yrd Mat Sub Rec Fac Robot Analysis Total 1 | . . . . 1 Derelict Logs Recovered 1 | . . 1 . . Drone Launches . | . . . . . Drone Recoveries . | . . . . . Exploration | -11 -10 -10 -8 -6 ------------- Run | Yrd Mat Sub Rec Fac Turns Passed 8497 | 70 1564 4522 800 1541 Spaces Moved 4727 | 41 796 2557 475 858 Core 13 | 5 . . . 8 Treads 4061 | 36 796 2557 475 197 Legs 653 | . . . . 653 Wheels . | . . . . . Hover . | . . . . . Flight . | . . . . . Fastest Speed 50 | 50 160 160 160 120 Average Speed 158 | 146 160 160 160 153 Slowest Speed 750 | 160 160 160 160 750 Overloaded Moves . | . . . . . Propulsion Burnouts . | . . . . . Robots Hopped . | . . . . . Cave-ins Triggered . | . . . . . Exploration Rate (%) 62 | 5 95 94 96 24 Regions Visited 4 Branch Regions 2 Pre-discovered Areas 8 | . 2 . 6 . Known Exits Taken . | . . . . . Unknown Exits Taken 4 | 1 1 1 1 . Scrap Searched 13 | . . 13 . . Spaces Dug 9 | . 2 5 . 2 Terrain Destroyed 62 | . 8 38 2 14 Melee 2 | . . . . 2 Projectile 13 | . 8 2 2 1 AOE 47 | . . 36 . 11 Terrain Rammed . | . . . . . Walls Destroyed . | . . . . . Machines Disabled . | . . . . . Actions | -11 -10 -10 -8 -6 --------- Run | Yrd Mat Sub Rec Fac Total 5340 | 48 968 2812 492 1020 Wait 142 | . 72 17 4 49 Move 4722 | 40 795 2555 474 858 Hop . | . . . . . Pick Up 53 | 2 12 29 . 10 Fast Attach 32 | 6 4 12 . 10 Attach 25 | . 3 6 1 15 Detach 12 | . 7 1 . 4 Swap 14 | . 4 6 . 4 Drop 43 | . 8 34 . 1 Fire 192 | . 63 90 12 27 Melee 82 | . . 45 1 36 Ram . | . . . . . Kick 1 | . . . . 1 Crush 5 | . . . . 5 Escape Stasis . | . . . . . Rewire . | . . . . . Trap . | . . . . . Miscellaneous 17 | . . 17 . . Route ------- -11/Scrapyard -10/Materials (discovered 5 exits: [*Mat x3] / [*Min] / *Sub) -10/Subcaves (discovered 3 exits: [*Mat x2] / *Rec) -8/Recycling -6/Factory (discovered 2 exits: [*Fac] / [*Low]) History --------- Turn | Location | Event 3 | -11/Scrapyard | Discovered new exit (range 14) 71 | -11/Scrapyard | Entered Materials 148 | -10/Materials | Discovered new exit (range 3) 310 | -10/Materials | Build established: Mutant 496 | -10/Materials | Discovered new exit (range 9) 800 | -10/Materials | Derelicts attacked the area 879 | -10/Materials | Discovered new exit (range 15) 1002 | -10/Materials | Discovered new exit (range 6) 1576 | -10/Materials | Discovered new exit (range 7) 1635 | -10/Materials | Entered Subcaves 1717 | -10/Subcaves | Visited Clippyterm 1781 | -10/Subcaves | Discovered new exit (range 16) 1911 | -10/Subcaves | Core integrity fell below 50% 1943 | -10/Subcaves | Lost 6 parts (1p1n2u2w) 2110 | -10/Subcaves | Ambushed by angry Subdweller bent on revenge 2325 | -10/Subcaves | Discovered new exit (range 10) 2416 | -10/Subcaves | Build established: Derelict-Mutant 2620 | -10/Subcaves | Discovered new exit (range 16) 2655 | -10/Subcaves | Disturbed a concealed Subdweller 2709 | -10/Subcaves | Shifting Twisted Machinery released Barrage Gun 2724 | -10/Subcaves | Shifting Twisted Machinery released Sub. Power Source 2959 | -10/Subcaves | Learned 4 Materials zone layouts 3642 | -10/Subcaves | Shifting Twisted Machinery released Battle Cannon 3643 | -10/Subcaves | Shifting Twisted Machinery released Sub. Power Source 4705 | -10/Subcaves | Shifting Twisted Machinery released Sub. Monowheel 4728 | -10/Subcaves | Shifting Twisted Machinery released Mak. Light Armor Plating 5315 | -10/Subcaves | Visited 4L-MR0's lab 5331 | -10/Subcaves | Found Power Bank 6157 | -10/Subcaves | Entered Recycling 6348 | -8/Recycling | Discovered new exit (range 6) 6797 | -8/Recycling | Core integrity fell below 20% 6957 | -8/Recycling | Entered Factory 6957 | -6/Factory | Evolved 8 slots: Propulsion x4, Utility x4 7303 | -6/Factory | Lost 5 parts (2n1u2w) 7369 | -6/Factory | Attached Power Bank, gained temporary slots: Power x3 7396 | -6/Factory | Spotted B-75 Beast 7543 | -6/Factory | Build established: Mutant 7581 | -6/Factory | Lost 3 parts (1p1u1w) 7655 | -6/Factory | Discovered new exit (range 15) 8075 | -6/Factory | Core integrity fell below 50% 8106 | -6/Factory | Lost 3 parts (1p1n1w) 8165 | -6/Factory | Repaired Broken Mak. Sword? 8179 | -6/Factory | Build established: Hacker-Mutant 8445 | -6/Factory | Garrison activated, responded to threat 8486 | -6/Factory | Core integrity fell below 20% 8490 | -6/Factory | Discovered new exit (range 13) 8498 | -6/Factory | Destroyed by Y-54 Guardian with Flak Gun Last Messages --------------- Deleted hostile record. 08447_ Sneak attack on G-67 Veteran. 08447_ Dirty Datajack expended. 08447_ Splicing G-67 Veteran... Installed hostile record filter. Deleted hostile record. 08448_ Sneak attack on G-67 Veteran. 08450_ Critical hit (Burn: +37). 08451_ Lgt. Nuclear Core destroyed. 08462_ K-01 Serf cleans the Nuclear Reactor. 08479_ Lgt. Fission Core destroyed. 08479_ Temporary Power slot lost. 08479_ Critical hit (Burn: +50). 08480_ Airjet destroyed. 08483_ Imp. Medium Armor Plating destroyed. 08485_ Imp. Medium Treads destroyed. 08490_ EXIT=FOUND 08492_ G-67 Veteran destroyed. 08495_ Mak. Hacking Suite destroyed. 08498_ G-50 Soldier destroyed. Map ----- +----------------------------------------------------+ | #??????????????????????????????????????? | | #??????????????????????????????????????? | | #??????????????????????????????????????? | | #??????????????????????????????????????? | | #??????????????????????????????????????? | | #??????????????????????????????????????? | | #??????????????????????????????????????? | | #??????????????????????????????????????? | | #??????????????????????????????????????? | | #??????????????????????????????????????? | | ###########??????????????????????????????????????? | | ?????????????????????????????????????????????????? | | ?????????????????????????????????????????????????? | | ?????????????????????????????????????????????????? | | ?????????????????????????????????????????????????? | | ?????????????????????????????????????????????????? | | ?????????????????????????????????????????????????? | | ?????????????????????????????????????????????????? | | ?????????????????????????????????????????????????? | | ?????????????????????????????????????????????????? | | ????????? ?????????????????????????????????????? | | ????????# #?????????"""""??????????????????????? | | ????????# #?????????# T??????????????????????? | | ????????# #?????????# #??????????????????????? | | ????????# #?????????# #??????????????????????? | | ????????# #?????????# @#########??????????????? | | ????????# #?????????# < ???????? | | ????????# #?????????# [%#########??????????????? | | ????????# #?????????# =##########?????????????? | | ????????# # ????????# = # ?????????????? | | ????????+ # "???????#gY # """ ""???????????????? | | ????????# # ??????# # """ ""???????????????? | | ????????# #?? ?????# # """ """ #????????????? | | ????????# #####"##### u + #????????????? | | ######### # " "" #????????????? | | + # "R"" ?????????????? | | ]! # ! ! ! # ! """ ??????????????? | | ! ####### *! #########??????????????? | | ]] #?????# *! #??????????????????????? | | #?????# #??????????????????????? | | """ #?????# w #??????????????????????? | | """ !#?????# ?????????????????????? | | """ #?????# ???????????????????? | | !#?????#!! """"""???????????????????? | | ####+####?????#!! ] """""" ??????????????????? | | ??????? """"""???????????????????? | | ????? ""???????????????????????? | | ??? ????????????????????????? | | ##########??### ????????????????????????? | | ??????????????# ### ????????????????????????? | +----------------------------------------------------+ Best States ------------- Heat Dissipation 37 Energy Generation 27 Energy Capacity 250 Matter Stores 300 Matter Capacity 300 Sight Range 16 Terrain Scan Density 10 Armor Coverage 800 Core Shielding 20 Evasion (%) 55 Recoil Reduction 2 Offensive Hacking 21 Item Schematics ----------------- Multitool | -6/Factory | Scanalyzed Mak. Sword | -6/Factory | Scanalyzed Imp. VTOL Module | -6/Factory | Hacked Robot Schematics ------------------ None Fabricated ------------ Nothing Alien Tech Used ----------------- None Achievements -------------- Error 47 Factory Defaults Challenges ------------ None Game ------ Seed SiegeAdvancedShredder Manual? 0 Play Time 00:51:49 Cumulative 56.8 hours Start 2024.05.12 @ 08:21:17 End 2024.05.12 @ 09:15:06 Sessions 1 Manual Loads 0 Difficulty Rogue Special Mode None Game No. 97 Rogue 75 Adventurer 22 Explorer 0 Win Type - Total 1 Types 1/0/0/0/0/0/0/0/0 Lore% 40 Gallery% 53 Achievement% 47 Wizard Run 0 Options --------- Layout 0 ASCII 0 Keyboard 1 Movement Mouse Keybinds 0 Fullscreen 2 Font 18/SmallcapsGlow Map View 76x50 Zoom Use 18% Tactical HUD 1 Map Filters NONE Filters NONE Steam 1 RUN: 401ae432-7a59-4e07-9157-be3ccda112d2